{"text_format":"3","workbook":"xlsx","n_sheets":3,"sheets":["Page 1","Page 2","Page 3"],"not_rendered":{"images":2,"defined_names":3},"read":"whole","date_system":"1900"}

{"sheet":"Page 1","index":0,"n_rows":55,"n_cols":5,"rows_kept":55,"merged":[[0,0,0,5],[5,3,5,5],[6,3,6,5],[8,3,8,5],[9,3,9,5],[10,3,10,5],[11,3,11,5],[12,3,12,5],[13,3,13,5],[14,3,14,5],[15,3,15,5],[16,3,16,5],[17,3,17,5],[18,1,18,5],[19,3,19,5],[20,3,20,5],[21,3,21,5],[22,1,22,5],[23,0,23,1],[24,1,24,3],[25,1,25,3],[28,0,28,1],[30,0,30,5],[31,0,31,5],[32,0,32,5],[33,4,33,5],[34,4,34,5],[35,4,35,5],[36,4,36,5],[37,4,37,5],[38,4,38,5],[39,4,39,5],[40,4,40,5],[41,4,41,5],[42,4,42,5],[43,4,43,5],[44,4,44,5],[45,4,45,5],[46,4,46,5],[47,4,47,5],[49,0,49,5],[50,0,50,5],[51,0,51,5],[55,0,55,5]]}
[]
[]
[null,"Boats F en250115"]
[]
[null,"CERTIFICATION APPLICATION ",null,"FOR  IMCI / IMCI (UK) USE ONLY"]
[null,"Recreational craft",null,"  Routeing #:"]
[null,"Module F",null,"  Certificate No.:"]
[]
[null,"Manufacturer:"]
[null,"Address:"]
[null,"ZIP Code:"]
[null,"City:"]
[null,"Country:"]
[null,"Signatory, Name:"]
[null,"Signatory, Title:"]
[null,"Phone:"]
[null,"Email:"]
[null,"Head of Engineering:"]
[]
[null,"Model Name of the related modul B certified craft:"]
[null,"CE Certificate Number of the related module B certified craft:"]
[null,"UKCA Certificate Number of the related module B certified craft:"]
[]
["The module F application is valid for:"]
[null,"Directive 2013/53/EU (RCD II) related to CE marking for EU.",null,null,"[Yes, No]"]
[null,"Recreational Craft Regulation (RCR) related to UKCA marking for UK",null,null,"[Yes, No]"]
[]
[]
["Lot size of module F assessment:",{"$nulls":3},"Input: number of lot size:"]
[]
["List all Watercraft Identification Number(s) included in the module F lot"]
["Note: in case of larger lot size, submit a second form."]
[]
[1,null,null,{"$f":"A48","v":15}]
[{"$f":"1+A34","v":2},null,null,{"$f":"D34+1","v":16}]
[{"$f":"1+A35","v":3},null,null,{"$f":"D35+1","v":17}]
[4,null,null,18]
[5,null,null,19]
[6,null,null,20]
[7,null,null,21]
[8,null,null,22]
[9,null,null,23]
[10,null,null,24]
[11,null,null,25]
[12,null,null,26]
[13,null,null,27]
[14,null,null,28]
[15,null,null,29]
[]
["As the manufacturer or his authorised representative, I declare under sole responsibility that the above product(s) to "]
["which this declaration relates is on conformity with the referenced requirements. "]
["This application has not been lodged with any other notified body / conformity assessment body."]
[]
[{"$nulls":4},"Date (yyyy-mm-dd) "]
["Signature of Manufacturer or his authorised Representative:"]

{"sheet":"Page 2","index":1,"n_rows":29,"n_cols":2,"rows_kept":29,"merged":[[0,0,0,2],[8,0,8,2],[10,0,10,2],[12,0,12,2],[13,1,13,2],[15,0,15,2],[16,0,16,2],[19,0,19,2],[22,0,22,2],[28,0,28,1],[29,0,29,2]]}
[]
[]
[{"$f":"'Page 1'!B3","v":"Boats F en250115"}]
[]
["Boat Manufacturer:",{"$f":"IF(ISBLANK('Page 1'!D9),\" \",'Page 1'!D9)","v":" "}]
["Boat Model Name:",{"$f":"IF(ISBLANK('Page 1'!D20),\" \",'Page 1'!D20)","v":" "}]
[]
[]
["For IMCI / IMCI (UK) Inspector use"]
[]
["Findings and comments on inspection by Inspector:"]
[]
["The following representative craft from the listed lot size was inspected:"]
["WIN:"]
[]
["I hereby confirm that no deviation was found between the inspected boat out of the Module F lot compared to the already certified prototype in Module B."]
["Photos of the inspected boat are submitted to IMCI office."]
[]
["Comments, if applicable:"]
[]
[]
[]
["I declare under our sole responsibility that I have not been active for the manufacturer in design, construction, marketing or other activities. The content of this form has been checked."]
[]
["Place of inspection:"]
[]
["Date of inspection:","(yyyy-mm-dd) "]
[]
["Inspection done by Inspector: Stamp, Clear Name, Signature:"]

{"sheet":"Page 3","index":2,"n_rows":37,"n_cols":4,"rows_kept":37,"merged":[[0,0,0,4],[4,1,4,4],[5,1,5,4],[7,0,7,4],[8,0,8,4],[11,0,11,3],[13,0,13,1],[15,0,15,3],[16,1,16,4],[17,0,17,3],[18,0,18,3],[19,0,19,1],[20,0,20,4],[21,0,21,4],[24,0,24,4],[27,0,27,4],[31,0,31,4],[34,0,34,4]]}
[]
[]
[{"$f":"'Page 1'!B3","v":"Boats F en250115"}]
[]
["Boat Manufacturer:",{"$f":"IF(ISBLANK('Page 1'!D9),\" \",'Page 1'!D9)","v":" "}]
["Boat Model Name:",{"$f":"IF(ISBLANK('Page 1'!D20),\" \",'Page 1'!D20)","v":" "}]
[]
["This page is only for IMCI / IMCI (UK) office use"]
[]
[]
[]
["For IMCI / IMCI (UK) office use only"]
["Application review"]
["Application accepted for IMCI Note 1",null,null,"[Yes, No] "]
["Application accepted for IMCI (UK) Note 1 ",null,null,"[Yes, No] "]
["Date (yyyy-mm-dd) "]
["Clear name and signature:"]
["Note 1: this date sets the reference for the applied standards."]
[]
["Comments to application or reason(s) if refused:"]
[]
[]
["Evaluation"]
["Evaluation by Office: Clear Name and Signature:",null,null,"Date (yyyy-mm-dd) "]
[]
[]
["Comments on Evaluation by Office:"]
[]
[]
["Review"]
["Review by Office: Clear Name and Signature:",null,null,"Date (yyyy-mm-dd) "]
[]
[]
["Comments on Review by Office:"]
[]
[]
["The certification decision is made by signing and dating the corresponding IMCI certificate"]